fUSD/lending_fUSD_20241208
["ID","MTS","AMOUNT","RATE_DAILY","PERIOD"]
[344623623,1733629834072,-157.25298026,0.00019998,2]
[344623624,1733629834081,-500.0,0.00019998,2]
[344623625,1733629834091,-500.0,0.00019998,2]
[344623626,1733629834100,-555.94719613,0.00019998,2]
[344623627,1733629834110,-597.86827338,0.00019998,2]
[344623628,1733629834119,-500.0,0.00019998,2]
[344623629,1733629834129,-500.0,0.00019998,2]
[344623630,1733629834138,-500.0,0.00019998,2]
[344623631,1733629834148,-541.55609247,0.00019998,2]
[344623632,1733629834157,-500.0,0.00019998,2]
[344623633,1733629834167,-525.81075172,0.00019998,2]
[344623634,1733629834176,-501.09137895,0.00019998,2]
[344623635,1733629834185,-500.0,0.00019998,2]
[344623636,1733629834195,-454.04326282,0.00019998,2]
[344623637,1733629834207,-45.95673718,0.00019998,2]
[344623638,1733629834425,-500.0,0.00019998,2]
[344623639,1733629834434,-46.40532427,0.00019998,2]
[344623640,1733629834446,-463.45813881,0.00019998,2]
[344623641,1733629834455,-248.56553436,0.00019998,2]
[344623642,1733629834523,-575.85446564,0.00019998,2]
[344623643,1733629834533,-502.63741713,0.00019998,2]
[344623644,1733629834543,-508.2067118,0.00019998,2]
[344623645,1733629834552,-591.2831393,0.00019998,2]
[344623646,1733629834561,-500.0,0.00019998,2]
[344623647,1733629834570,-576.01868698,0.00019998,2]
[344623648,1733629834579,-503.68826935,0.00019998,2]
[344623649,1733629834590,-500.0,0.00019998,2]
[344623650,1733629834599,-500.0,0.00019998,2]
[344623651,1733629834608,-512.76748671,0.00019998,2]
[344623652,1733629834617,-500.0,0.00019998,2]
[344623653,1733629834627,-514.31924185,0.00019998,2]
[344623654,1733629834636,-503.03605162,0.00019998,2]
[344623655,1733629834646,-506.83836734,0.00019998,2]
[344623656,1733629834655,-1212.57124183,0.00019998,2]
[344623657,1733629834664,-502.39968939,0.00019998,2]
[344623658,1733629834673,-500.0,0.00019998,2]
[344623659,1733629834682,-504.07710138,0.00019998,2]
[344623660,1733629834692,-502.90437198,0.00019998,2]
[344623661,1733629834701,-518.05355017,0.00019998,2]
[344623662,1733629834710,-1031.79766918,0.00019998,2]
[344623663,1733629834720,-503.39346197,0.00019998,2]
[344623664,1733629834730,-500.0,0.00019998,2]
[344623665,1733629834739,-505.0014343,0.00019998,2]
[344623666,1733629834748,-374.79564862,0.00019999,2]
[344623667,1733629834760,-125.20435138,0.00019999,2]
[344623668,1733629834769,-500.0,0.00019999,2]
[344623669,1733629834778,-504.56720976,0.00019999,2]
[344623670,1733629834788,-151.2423014,0.00019999,2]
[344623671,1733629834796,-500.0,0.00019999,2]
[344623672,1733629834806,-500.0,0.00019999,2]
[344623673,1733629834815,-497.23054955,0.00019999,2]
[344623674,1733629838139,-4.767361,0.00019999,2]
[344623675,1733629838148,-500.34378541,0.00019999,2]
[344623676,1733629838157,-413.69279859,0.00020266,2]
[344623677,1733629838168,-586.30720141,0.00020266,2]
[344623678,1733629838177,-316.32361158,0.0002039,2]
[344623679,1733629838192,-1683.67638842,0.0002039,2]
[344623680,1733629838201,-1212.71877626,0.0002047,2]
[344623681,1733629838213,-13116.99231973,0.0002047,2]
[344623682,1733629838224,-18727.02249555,0.0002047,2]
[344623684,1733629838236,-36420.0,0.0002047,2]
[344623696,1733629839891,-4523.26640846,0.0002047,2]
[344623698,1733629839901,-223.51,0.00020655,2]
[344623699,1733629839910,-74000.0,0.0002085,2]
[344623700,1733629839920,-847.71,0.00020973,30]
[344623702,1733629839934,-650.0,0.00021,2]
[344623704,1733629839943,-217.08,0.00021057,2]
[344623705,1733629839953,-3000.0,0.000211,2]
[344623706,1733629839962,-150.99,0.000211,2]
[344623707,1733629839979,-227.0,0.00021139,2]
[344623708,1733629839988,-154.269,0.00021139,2]
[344623709,1733629840000,-166.0,0.00021139,2]
[344623710,1733629840010,-290.76,0.00021155,2]
[344623711,1733629840019,-35611.39075918,0.0002123,2]
[344623712,1733629840032,-36096.8444935,0.0002123,2]
[344623713,1733629840043,-849.41419005,0.0002123,2]
[344623714,1733629840055,-1442.35055727,0.0002123,2]
[344623715,1733629840065,-121.90605046,0.00021301,2]
[344623716,1733629840076,-128.09394954,0.00021301,2]
[344623717,1733629840086,-250.0,0.00021477,2]
[344623718,1733629840095,-629.42917142,0.0002148,2]
[344623719,1733629840187,-2334.25286798,0.0002148,2]
[344623720,1733629840198,-71036.3179606,0.0002148,2]
[344623721,1733629840208,-151.58,0.0002176,2]
[344623722,1733629840217,-74000.0,0.0002177,2]
[344623723,1733629840227,-185.99,0.0002179,2]
[344623724,1733629840236,-151.58,0.0002182,2]
[344623725,1733629840246,-74000.0,0.0002183,2]
[344623726,1733629840256,-1476.0,0.000219,2]
[344623727,1733629840266,-500.0,0.00021916,2]
[344623728,1733629840275,-500.0,0.00021916,2]
[344623729,1733629840284,-500.0,0.00021916,2]
[344623730,1733629840296,-1410.59,0.00021916,2]
[344623731,1733629840306,-515.37,0.00021916,2]
[344623732,1733629840315,-500.0,0.00021916,2]
[344623733,1733629840325,-500.0,0.00021916,2]
[344623734,1733629840334,-374.0986534,0.00021917,2]
[344623735,1733629840343,-9705.8,0.00021918,2]
[344623736,1733629840353,-151.58,0.0002194,2]
[344623737,1733629840362,-63918.63890436,0.0002195,2]
[344623738,1733629840374,-10081.36109564,0.0002195,2]
[344623739,1733629840384,-5000.0,0.00022,60]
[344623740,1733629840393,-172.0,0.00022,2]
[344623741,1733629840403,-316.28698288,0.00022021,2]
[344623742,1733629840412,-500.0,0.00022057,2]
[344623743,1733629840422,-2211.981,0.00022057,2]
[344623744,1733629840431,-2000.0,0.00022129,120]
[344623745,1733629840441,-74000.0,0.0002234,2]
[344623746,1733629840450,-316.28698288,0.00022367,2]
[344623747,1733629840460,-666.0,0.00022398,3]
[344623748,1733629840470,-666.0,0.00022398,3]
[344623749,1733629840479,-666.0,0.00022398,3]
[344623750,1733629840489,-666.0,0.00022398,3]
[344623751,1733629840499,-666.0,0.00022398,3]
[344623752,1733629840509,-666.0,0.00022398,3]
[344623753,1733629840519,-666.0,0.00022398,3]
[344623754,1733629840529,-666.0,0.00022398,3]
[344623755,1733629840538,-666.0,0.00022398,3]
[344623756,1733629840548,-666.0,0.00022398,3]
[344623757,1733629840558,-666.0,0.00022398,2]
[344623758,1733629840567,-666.0,0.00022398,2]
[344623759,1733629840577,-666.0,0.00022398,2]
[344623760,1733629840587,-666.0,0.00022398,2]
[344623761,1733629840597,-666.0,0.00022398,2]
[344623762,1733629840606,-666.0,0.00022398,2]
[344623763,1733629840615,-666.0,0.00022398,2]
[344623764,1733629840625,-666.0,0.00022398,2]
[344623765,1733629840634,-666.0,0.00022398,2]
[344623766,1733629840644,-397.66442002,0.00022398,2]
[344623767,1733629840654,-1999.0,0.00022498,2]
[344623768,1733629840663,-1999.0,0.00022498,2]
[344623769,1733629840672,-1999.0,0.00022498,2]
[344623770,1733629840682,-1999.0,0.00022498,2]
[344623771,1733629840691,-1999.0,0.00022498,2]
[344623772,1733629840701,-1999.0,0.00022498,2]
[344623773,1733629840711,-1999.0,0.00022498,2]
[344623774,1733629840721,-1999.0,0.00022498,2]
[344623775,1733629840731,-1999.0,0.00022498,2]
[344623776,1733629840740,-1999.0,0.00022498,2]
[344623777,1733629840750,-1999.0,0.00022498,3]
[344623778,1733629840759,-1999.0,0.00022498,3]
[344623779,1733629840768,-1999.0,0.00022498,3]
[344623780,1733629840777,-1999.0,0.00022498,3]
[344623781,1733629840788,-1999.0,0.00022498,3]
[344623782,1733629840797,-1999.0,0.00022498,3]
[344623783,1733629840807,-1999.0,0.00022498,3]
[344623784,1733629840816,-1999.0,0.00022498,3]
[344623785,1733629840826,-1999.0,0.00022498,3]
[344623786,1733629840836,-1999.0,0.00022498,3]
[344623787,1733629840845,-316.28698289,0.0002258,2]
[344623788,1733629840855,-500.0,0.00022599,2]
[344623789,1733629840865,-500.0,0.00022599,2]
[344623790,1733629840876,-500.0,0.00022599,2]
[344623791,1733629840885,-1410.59,0.00022599,2]
[344623792,1733629840895,-500.0,0.00022599,2]
[344623793,1733629840904,-1052.0,0.000227,2]
[344623794,1733629840915,-3000.0,0.0002277,2]
[344623795,1733629840927,-1000.0,0.00022799,2]
[344623796,1733629840937,-223.51,0.00022918,2]
[344623797,1733629840947,-151.58,0.00022959,2]
[344623798,1733629840957,-151.58,0.00022959,2]
[344623799,1733629840968,-107392.92566528,0.00022969,3]
[344623800,1733629840978,-151.58,0.0002297,2]
[344623801,1733629840987,-151.58,0.0002297,2]
[344623802,1733629840996,-151.58,0.0002297,2]
[344623803,1733629841006,-151.58,0.0002297,2]
[344623804,1733629841017,-151.58,0.0002297,2]
[344623805,1733629841026,-151.58,0.0002297,2]
[344623806,1733629841036,-151.58,0.0002297,2]
[344623807,1733629841046,-151.58,0.0002297,2]
[344623808,1733629841055,-151.58,0.0002297,2]
[344623809,1733629841064,-151.58,0.0002297,2]
[344623810,1733629841074,-151.58,0.0002297,2]
[344623811,1733629841083,-151.58,0.0002297,2]
[344623812,1733629841093,-151.58,0.0002297,2]
[344623813,1733629841103,-151.58,0.0002297,2]
[344623814,1733629841113,-151.58,0.0002297,2]
[344623815,1733629841122,-151.58,0.0002297,2]
[344623816,1733629841132,-151.58,0.0002297,2]
[344623817,1733629841142,-151.58,0.0002297,2]
[344623818,1733629841151,-151.58,0.0002297,2]
[344623819,1733629841161,-342.90767026,0.00022979,2]
[344623820,1733629841171,-575.95,0.00022979,2]
[344623821,1733629841181,-575.95,0.00022979,2]
[344623822,1733629841191,-575.95,0.00022979,2]
[344623823,1733629841201,-575.95,0.00022979,2]
[344623824,1733629841210,-575.95,0.00022979,2]
[344623825,1733629841222,-575.95,0.00022979,2]
[344623826,1733629841232,-575.95,0.00022979,2]
[344623827,1733629841241,-575.95,0.00022979,2]
[344623828,1733629841251,-575.95,0.00022979,2]
[344623829,1733629841260,-575.95,0.00022979,2]
[344623830,1733629841270,-575.95,0.00022979,2]
[344623831,1733629841280,-575.95,0.00022979,2]
[344623832,1733629841289,-575.95,0.00022979,2]
[344623833,1733629841299,-575.95,0.00022979,2]
[344623834,1733629841308,-575.95,0.00022979,2]
[344623835,1733629841318,-500.0,0.00022979,2]
[344623836,1733629841327,-500.0,0.00022979,2]
[344623837,1733629841337,-500.0,0.00022979,2]
[344623838,1733629841347,-560.62922944,0.00022979,2]
[344623839,1733629841355,-500.51457047,0.00022979,2]
[344623840,1733629841365,-500.0,0.00022979,2]
[344623841,1733629841374,-530.99126296,0.00022979,2]
[344623842,1733629841383,-500.0,0.00022979,2]
[344623843,1733629841393,-500.0,0.00022979,2]
[344623844,1733629841403,-500.0,0.00022979,2]
[344623845,1733629841412,-248.69510285,0.00022979,2]
[344623846,1733629841421,-500.0,0.00022979,2]
[344623847,1733629841431,-500.0,0.00022979,2]
[344623848,1733629841440,-500.0,0.00022979,2]
[344623849,1733629841450,-500.0,0.00022979,2]
[344623850,1733629841459,-500.0,0.00022979,2]
[344623851,1733629841470,-500.0,0.00022979,2]
[344623852,1733629841479,-500.0,0.00022979,2]
[344623853,1733629841489,-500.0,0.00022979,2]
[344623854,1733629841498,-500.0,0.00022979,2]
[344623855,1733629841508,-500.0,0.00022979,2]
[344623856,1733629841517,-179.40031675,0.00022979,2]
[344623857,1733629841526,-500.0,0.00022979,2]
[344623858,1733629841536,-500.0,0.00022979,2]
[344623859,1733629841545,-500.0,0.00022979,2]
[344623860,1733629841555,-500.0,0.00022979,2]
[344623861,1733629841564,-500.0,0.00022979,2]
[344623862,1733629841574,-500.0,0.00022979,2]
[344623863,1733629841583,-500.0,0.00022979,2]
[344623864,1733629841592,-500.0,0.00022979,2]
[344623865,1733629841602,-563.41039314,0.00022979,2]
[344623866,1733629841611,-176.78078913,0.00022979,2]
[344623867,1733629841621,-500.0,0.00022979,2]
[344623868,1733629841630,-500.0,0.00022979,2]
[344623869,1733629841641,-500.0,0.00022979,2]
[344623870,1733629841650,-500.0,0.00022979,2]
[344623871,1733629841660,-500.0,0.00022979,2]
[344623872,1733629841670,-500.0,0.00022979,2]
[344623873,1733629841679,-500.0,0.00022979,2]
[344623874,1733629841689,-500.0,0.00022979,2]
[344623875,1733629841699,-500.0,0.00022979,2]
[344623876,1733629841708,-500.0,0.00022979,2]
[344623877,1733629841718,-500.0,0.00022979,2]
[344623878,1733629841727,-500.0,0.00022979,2]
[344623879,1733629841737,-500.0,0.00022979,2]
[344623880,1733629841747,-500.0,0.00022979,2]
[344623881,1733629841756,-500.0,0.00022979,2]
[344623882,1733629841766,-500.0,0.00022979,2]
[344623883,1733629841775,-246.79167476,0.00022979,2]
[344623884,1733629841786,-500.0,0.00022979,2]
[344623885,1733629841796,-500.0,0.00022979,2]
[344623886,1733629841805,-172.65036168,0.00022979,2]
[344623887,1733629841815,-500.0,0.00022979,2]
[344623888,1733629841825,-500.0,0.00022979,2]
[344623889,1733629841834,-500.0,0.00022979,2]
[344623890,1733629841844,-500.0,0.00022979,2]
[344623891,1733629841854,-500.0,0.00022979,2]
[344623892,1733629841863,-500.0,0.00022979,2]
[344623893,1733629841872,-500.0,0.00022979,2]
[344623894,1733629841881,-500.0,0.00022979,2]
[344623895,1733629841891,-500.0,0.00022979,2]
[344623896,1733629841900,-824.42,0.00022979,2]
[344623897,1733629841909,-824.42,0.00022979,2]
[344623898,1733629841919,-824.42,0.00022979,2]
[344623899,1733629841931,-824.42,0.00022979,2]
[344623900,1733629841941,-824.42,0.00022979,2]
[344623901,1733629841950,-824.42,0.00022979,2]
[344623902,1733629841960,-824.42,0.00022979,2]
[344623903,1733629841971,-824.42,0.00022979,2]
[344623904,1733629841982,-824.42,0.00022979,2]
[344623905,1733629841991,-824.42,0.00022979,2]
[344623906,1733629842003,-824.42,0.00022979,2]
[344623907,1733629842012,-824.42,0.00022979,2]
[344623908,1733629842021,-824.42,0.00022979,2]
[344623909,1733629842031,-824.42,0.00022979,2]
[344623910,1733629842040,-824.42,0.00022979,2]
[344623911,1733629842049,-500.0,0.00022979,2]
[344623912,1733629842058,-500.0,0.00022979,2]
[344623913,1733629842067,-500.0,0.00022979,2]
[344623914,1733629842078,-500.0,0.00022979,2]
[344623915,1733629842088,-500.0,0.00022979,2]
[344623916,1733629842097,-500.0,0.00022979,2]
[344623917,1733629842107,-500.0,0.00022979,2]
[344623918,1733629842116,-500.0,0.00022979,2]
[344623919,1733629842126,-500.0,0.00022979,2]
[344623920,1733629842136,-500.0,0.00022979,2]
[344623921,1733629842145,-500.0,0.00022979,2]
[344623922,1733629842154,-500.0,0.00022979,2]
[344623923,1733629842164,-500.0,0.00022979,2]
[344623924,1733629842173,-500.0,0.00022979,2]
[344623925,1733629842182,-500.0,0.00022979,2]
[344623926,1733629842192,-20000.0,0.0002298,2]
[344623927,1733629842202,-1742154.0,0.0002298,2]
[344623928,1733629842212,-151.58,0.00022989,2]
[344623929,1733629842223,-500.0,0.00022997,2]
[344623930,1733629842232,-500.0,0.00022999,2]
[344623931,1733629842242,-500.0,0.00022999,2]
[344623932,1733629842251,-381.11840117,0.00022999,2]
[344623933,1733629842260,-500.0,0.00022999,2]
[344623934,1733629842270,-500.0,0.00022999,2]
[344623935,1733629842279,-500.0,0.00022999,2]
[344623936,1733629842289,-500.0,0.00022999,2]
[344623937,1733629842298,-500.0,0.00022999,2]
[344623938,1733629842307,-500.0,0.00022999,2]
[344623939,1733629842317,-460.60284493,0.00022999,2]
[344623940,1733629842327,-500.0,0.00022999,2]
[344623941,1733629842336,-500.0,0.00022999,2]
[344623942,1733629842345,-500.0,0.00022999,2]
[344623943,1733629842354,-500.0,0.00022999,2]
[344623944,1733629842363,-500.0,0.00022999,2]
[344623945,1733629842373,-500.0,0.00022999,2]
[344623946,1733629842383,-500.0,0.00022999,2]
[344623947,1733629842392,-462.05,0.00022999,2]
[344623948,1733629842402,-1410.59,0.00022999,2]
[344623949,1733629842411,-1410.59,0.00022999,2]
[344623950,1733629842421,-1410.59,0.00022999,2]
[344623951,1733629842430,-1410.59,0.00022999,2]
[344623952,1733629842439,-1410.59,0.00022999,2]
[344623953,1733629842448,-1410.59,0.00022999,2]
[344623954,1733629842458,-1410.59,0.00022999,2]
[344623955,1733629842467,-1410.59,0.00022999,2]
[344623956,1733629842477,-1410.59,0.00022999,2]
[344623957,1733629842651,-1410.59,0.00022999,2]
[344623958,1733629842662,-1410.59,0.00022999,2]
[344623959,1733629842671,-1410.59,0.00022999,2]
[344623960,1733629842681,-1410.59,0.00022999,2]
[344623961,1733629842691,-1410.81,0.00022999,2]
[344623962,1733629842700,-515.37,0.00022999,2]
[344623963,1733629842710,-515.37,0.00022999,2]
[344623964,1733629842721,-515.37,0.00022999,2]
[344623965,1733629842730,-515.37,0.00022999,2]
[344623966,1733629842740,-515.37,0.00022999,2]
[344623967,1733629842749,-515.37,0.00022999,2]
[344623968,1733629842759,-515.37,0.00022999,2]
[344623969,1733629842769,-515.37,0.00022999,2]
[344623970,1733629842779,-515.37,0.00022999,2]
[344623971,1733629842788,-515.37,0.00022999,2]
[344623972,1733629842798,-515.37,0.00022999,2]
[344623973,1733629842807,-515.37,0.00022999,2]
[344623974,1733629842817,-515.37,0.00022999,2]
[344623975,1733629842826,-515.49613675,0.00022999,2]
[344623976,1733629842835,-500.0,0.00022999,2]
[344623977,1733629842845,-500.0,0.00022999,2]
[344623978,1733629842854,-500.0,0.00022999,2]
[344623979,1733629842863,-500.0,0.00022999,2]
[344623980,1733629842873,-500.0,0.00022999,2]
[344623981,1733629842882,-500.0,0.00022999,2]
[344623982,1733629842892,-500.0,0.00022999,2]
[344623983,1733629842901,-500.0,0.00022999,2]
[344623984,1733629842911,-500.0,0.00022999,2]
[344623985,1733629842920,-201.96061089,0.00022999,2]
[344623986,1733629842932,-575.95,0.00022999,2]
[344623987,1733629842942,-575.95,0.00022999,2]
[344623988,1733629842952,-575.95,0.00022999,2]
[344623989,1733629842961,-575.95,0.00022999,2]
[344623990,1733629842971,-575.95,0.00022999,2]
[344623991,1733629842981,-575.95,0.00022999,2]
[344623992,1733629842991,-575.95,0.00022999,2]
[344623993,1733629843000,-576.13157,0.00022999,2]
[344623994,1733629843011,-509.75321052,0.00022999,2]
[344623995,1733629843022,-29008.96023934,0.00022999,20]
[344623997,1733629843031,-824.42,0.00022999,2]
[344623998,1733629843040,-824.42,0.00022999,2]
[344624000,1733629843050,-824.42,0.00022999,2]
[344624001,1733629843059,-824.42,0.00022999,2]
[344624002,1733629843068,-824.42,0.00022999,2]
[344624003,1733629843078,-824.42,0.00022999,2]
[344624004,1733629843087,-824.42,0.00022999,2]
[344624005,1733629843097,-824.61254997,0.00022999,2]
[344624006,1733629843106,-500.0,0.00022999,2]
[344624007,1733629843116,-375.58000001,0.00022999,2]
[344624008,1733629843125,-548177.29718297,0.00023,3]
[344624009,1733629843134,-6599.77428543,0.00023,2]
[344624010,1733629843144,-29431.67414619,0.00023,3]
[344624011,1733629843155,-1428.6210137,0.00023,3]
[344624012,1733629843169,-10598.25405389,0.00023,3]
[344624013,1733629843348,-500.0,0.00021769,2]
[344624014,1733629843358,-383.80926031,0.00021769,2]
[344624015,1733629843367,-500.0,0.00021769,2]
[344624016,1733629843377,-500.0,0.00021769,2]
[344624017,1733629843386,-500.0,0.00021769,2]
[344624018,1733629843395,-186.25807358,0.00021769,2]
[344624019,1733629843405,-500.0,0.00021769,2]
[344624020,1733629843414,-500.0,0.00021769,2]
[344624021,1733629843424,-500.0,0.00021769,2]
[344624022,1733629843434,-500.0,0.00021769,2]
[344624023,1733629843443,-218.17036564,0.00021769,2]
[344624024,1733629843452,-500.0,0.00021769,2]
[344624025,1733629843462,-1581.65744605,0.00023,3]
[344624026,1733629843478,-566.03448,0.00023,3]
[344624027,1733629843497,-500.0,0.00021769,2]
[344624028,1733629843506,-500.0,0.00021769,2]
[344624029,1733629843516,-170.00004,0.00023,3]
[344624030,1733629843527,-500.0,0.00023,3]
[344624031,1733629843539,-839.05726203,0.00023,3]
[344624032,1733629843550,-1252.64456291,0.00023,3]
[344624033,1733629843594,-369.04840763,0.00023,3]
[344624037,1733629845815,-18601.79006983,0.00023,3]
[344624038,1733629845827,-11772.95709027,0.00023,3]
[344624039,1733629845838,-22200.000002,0.00023,3]
[344624040,1733629846413,-4833.79971318,0.00023,3]
[344624044,1733630449868,10068.53669824,0.0001,2]
[344624049,1733631032111,-151.52,0.00016003,2]
[344624050,1733631032121,-300.0,0.00017439,2]
[344624051,1733631032130,-500.0,0.0001744,2]
[344624052,1733631032139,-500.0,0.0001744,2]
[344624053,1733631032149,-169.139994,0.0001744,2]
[344624054,1733631032165,-330.860006,0.0001744,2]
[344624055,1733631032175,-500.0,0.0001744,2]
[344624056,1733631032184,-182.24424122,0.0001744,2]
[344624057,1733631032193,-203.14,0.00017482,2]
[344624058,1733631032204,-235.63,0.000183,2]
[344624059,1733631032223,-1500.0,0.00019673,2]
[344624060,1733631032233,-852.43,0.00019681,30]
[344624061,1733631032245,-203.14,0.00019746,2]
[344624062,1733631032255,-20473.68,0.00019778,2]
[344624063,1733631032264,-326.94,0.0001988,2]
[344624064,1733631032274,-1200.0,0.000199,2]
[344624065,1733631032283,-847.31,0.00019941,2]
[344624066,1733631032293,-214.22,0.00019946,2]
[344624068,1733631032303,-500.0,0.00019998,2]
[344624070,1733631032312,-2000.0,0.0002,2]
[344624072,1733631032323,-1275.0,0.0002,3]
[344624075,1733631032333,-1274.0,0.0002,3]
[344624078,1733631032343,-1274.0,0.0002,3]
[344624080,1733631032352,-1274.0,0.0002,3]
[344624082,1733631032365,-3599.51044,0.0002001,2]
[344624084,1733631032375,-250.0,0.00020067,2]
[344624086,1733631032385,-250.0,0.00020127,2]
[344624088,1733631032394,-1170.954,0.00020139,2]
[344624090,1733631032405,-1101.285,0.00020139,2]
[344624092,1733631032414,-500.0,0.00020162,2]
[344624094,1733631032424,-1881.0,0.000202,2]
[344624096,1733631032434,-2000.0,0.000203,2]
[344624098,1733631032444,-153.0,0.00020332,2]
[344624100,1733631032454,-150.0,0.00020397,2]
[344624101,1733631032464,-300.0,0.00020547,2]
[344624102,1733631032473,-5249.62388349,0.00020548,2]
[344624103,1733631032499,-15118.91611651,0.00020548,2]
[344624104,1733631032508,-200.0,0.00020782,2]
[344624105,1733631032518,-232.6669506,0.000208,2]
[344624106,1733631032527,-246.69026343,0.000208,2]
[344624107,1733631032537,-294.68344,0.00020819,15]
[344624108,1733631032546,-382.54408276,0.00020873,2]
[344624109,1733631032555,-500.0,0.00020873,2]
[344624110,1733631032564,-511.13889382,0.00020873,2]
[344624111,1733631032573,-500.0,0.00020873,2]
[344624112,1733631032583,-159.62510873,0.00020873,2]
[344624113,1733631032592,-500.0,0.00020899,2]
[344624114,1733631032603,-500.0,0.00020899,2]
[344624115,1733631032612,-500.0,0.00020899,2]
[344624116,1733631032621,-500.0,0.00020899,2]
[344624117,1733631032630,-500.0,0.00020899,2]
[344624118,1733631032640,-500.0,0.00020899,2]
[344624119,1733631032650,-500.0,0.00020899,2]
[344624120,1733631032659,-500.0,0.00020899,2]
[344624121,1733631032669,-350.0,0.00020899,2]
[344624122,1733631032679,-500.0,0.00020899,2]
[344624123,1733631032688,-500.0,0.00020899,2]
[344624124,1733631032698,-500.0,0.00020899,2]
[344624125,1733631032707,-500.0,0.00020899,2]
[344624126,1733631032716,-500.0,0.00020899,2]
[344624127,1733631032725,-500.0,0.00020899,2]
[344624128,1733631032735,-500.0,0.00020899,2]
[344624129,1733631032749,-500.0,0.00020899,2]
[344624130,1733631032759,-500.0,0.00020899,2]
[344624131,1733631032768,-500.0,0.00020899,2]
[344624132,1733631032778,-500.0,0.00020899,2]
[344624133,1733631032788,-500.0,0.00020899,2]
[344624134,1733631032798,-500.0,0.00020899,2]
[344624135,1733631032807,-500.0,0.00020899,2]
[344624136,1733631032817,-500.0,0.00020899,2]
[344624137,1733631032827,-500.0,0.00020899,2]
[344624138,1733631032836,-500.0,0.00020899,2]
[344624139,1733631032846,-500.0,0.00020899,2]
[344624140,1733631032855,-500.0,0.00020899,2]
[344624141,1733631032865,-500.0,0.00020899,2]
[344624142,1733631032879,-500.0,0.00020899,2]
[344624143,1733631032892,-500.0,0.00020899,2]
[344624144,1733631032903,-500.0,0.00020899,2]
[344624145,1733631032913,-500.0,0.00020899,2]
[344624146,1733631032922,-500.0,0.00020899,2]
[344624147,1733631032932,-500.0,0.00020899,2]
[344624148,1733631032942,-500.0,0.00020899,2]
[344624149,1733631032955,-500.0,0.00020899,2]
[344624150,1733631032965,-500.0,0.00020899,2]
[344624151,1733631032975,-500.0,0.00020899,2]
[344624152,1733631032986,-500.0,0.00020899,2]
[344624153,1733631032998,-500.0,0.00020899,2]
[344624154,1733631033007,-500.0,0.00020899,2]
[344624155,1733631033018,-500.0,0.00020899,2]
[344624156,1733631033028,-500.0,0.00020899,2]
[344624157,1733631033038,-500.0,0.00020899,2]
[344624158,1733631033048,-500.0,0.00020899,2]
[344624159,1733631033058,-500.0,0.00020899,2]
[344624160,1733631033067,-500.0,0.00020899,2]
[344624161,1733631033076,-500.0,0.00020899,2]
[344624162,1733631033088,-500.0,0.00020899,2]
[344624163,1733631033098,-110.66968402,0.00020899,2]
[344624164,1733631033115,-389.33031598,0.00020899,2]
[344624165,1733631033125,-500.0,0.00020899,2]
[344624166,1733631033135,-500.0,0.00020899,2]
[344624167,1733631033145,-500.0,0.00020899,2]